bitfinex/quotes_SOLUSD_20241013
["timestamp","ask_amount","ask_price","bid_price","bid_amount"]
[1728777601145,29.63944241,146.71,146.63,20.0]
[1728777602860,2.0,146.67,146.63,20.0]
[1728777603182,72.0,146.67,146.63,20.0]
[1728777604273,72.0,146.67,146.55,23.776884]
[1728777604581,72.0,146.67,146.65,20.0]
[1728777606372,72.0,146.67,146.59,20.0]
[1728777606576,72.0,146.67,146.65,20.0]
[1728777608385,2.0,146.67,146.66,10.02518573]
[1728777608565,2.0,146.69,146.66,30.02518573]
[1728777608894,2.0,146.69,146.68,30.02518573]
[1728777609180,70.0,146.73,146.69,20.0]
[1728777609398,2.0,146.72,146.7,10.02518573]
[1728777612683,2.0,146.72,146.66,20.0]
[1728777612896,2.0,146.72,146.7,20.0]
[1728777614475,2.0,146.72,146.71,10.02518573]
[1728777615703,2.0,146.7,146.69,10.02518573]
[1728777615994,2.0,146.7,146.69,30.02518573]
[1728777616572,2.0,146.7,146.69,10.02518573]
[1728777616781,2.0,146.7,146.69,30.02518573]
[1728777625000,2.0,146.72,146.69,30.02518573]
[1728777625174,2.0,146.7,146.69,30.02518573]
[1728777625601,2.0,146.7,146.68,20.0]
[1728777626301,2.0,146.7,146.69,10.02518573]
[1728777627800,2.0,146.7,146.69,30.02518573]
[1728777629108,2.0,146.7,146.59,20.0]
[1728777629283,2.0,146.7,146.69,20.0]
[1728777632597,2.0,146.72,146.69,20.0]
[1728777632778,2.0,146.7,146.69,20.0]
[1728777632989,2.0,146.7,146.6,20.0]
[1728777633288,2.0,146.7,146.69,20.0]
[1728777634300,2.0,146.7,146.6,20.0]
[1728777634493,2.0,146.7,146.68,20.0]
[1728777635898,2.0,146.7,146.6,20.0]
[1728777636078,2.0,146.7,146.67,20.0]
[1728777638707,2.0,146.7,146.68,10.02518573]
[1728777647096,2.0,146.7,146.69,20.0]
[1728777650695,2.0,146.7,146.69,43.776884]
[1728777652731,2.0,146.7,146.62,3.24476819]
[1728777653029,2.0,146.7,146.68,20.0]
[1728777653400,2.0,146.7,146.69,1.36334353]
[1728777655531,2.0,146.7,146.68,20.0]
[1728777661030,2.0,146.7,146.62,20.0]
[1728777661231,2.0,146.7,146.67,20.0]
[1728777661435,2.0,146.7,146.67,43.776884]
[1728777662536,2.0,146.7,146.67,53.80206973]
[1728777662920,2.0,146.7,146.67,30.02518573]
[1728777678373,2.0,146.74,146.7,20.0]
[1728777678560,2.0,146.74,146.71,10.02518573]
[1728777680703,2.0,146.74,146.72,20.0]
[1728777681944,2.0,146.74,146.73,10.02518573]
[1728777685588,2.0,146.74,146.71,30.02518573]
[1728777694994,2.0,146.74,146.73,10.02518573]
[1728777696997,21.7449,146.75,146.74,20.0]
[1728777697302,2.0,146.76,146.74,30.02518573]
[1728777711319,23.7979,146.78,146.74,30.02518573]
[1728777711489,23.7979,146.78,146.77,10.02518573]
[1728777712814,23.7979,146.78,146.75,10.02518573]
[1728777713190,23.7979,146.78,146.76,20.0]
[1728777720517,23.7979,146.78,146.71,20.0]
[1728777720827,23.7979,146.78,146.76,10.02518573]
[1728777732841,2.0,146.78,146.76,10.02518573]
[1728777733009,2.0,146.78,146.76,20.0]
[1728777733215,2.0,146.78,146.77,10.02518573]
[1728777740040,2.0,146.78,146.76,20.0]
[1728777740204,2.0,146.78,146.77,10.02518573]
[1728777742012,2.0,146.78,146.77,30.02518573]
[1728777742337,2.0,146.8,146.77,30.02518573]
[1728777742638,2.0,146.8,146.79,10.02518573]
[1728777744435,2.0,146.8,146.79,30.02518573]
[1728777747427,23.7227,146.82,146.8,20.0]
[1728777747943,23.7227,146.82,146.81,10.02518573]
[1728777751235,2.0,146.82,146.81,30.02518573]
[1728777752859,70.0,146.83,146.81,30.02518573]
[1728777753030,70.0,146.83,146.82,10.02518573]
[1728777757439,70.0,146.83,146.76,20.0]
[1728777757756,70.0,146.83,146.81,20.0]
[1728777759062,70.0,146.83,146.81,10.02518573]
[1728777759759,2.0,146.82,146.81,30.02518573]
[1728777767473,70.0,146.83,146.81,30.02518573]
[1728777777083,2.0,146.82,146.81,30.02518573]
[1728777777983,70.0,146.83,146.81,30.02518573]
[1728777779183,2.0,146.82,146.81,30.02518573]
[1728777780983,70.0,146.83,146.81,30.02518573]
[1728777781178,2.0,146.82,146.81,30.02518573]
[1728777783487,70.0,146.83,146.81,30.02518573]
[1728777783690,2.0,146.82,146.81,30.02518573]
[1728777784999,72.0,146.78,146.75,10.02518573]
[1728777785284,70.0,146.76,146.75,10.02518573]
[1728777785992,70.0,146.76,146.66,3.97195113]
[1728777786181,70.0,146.76,146.64,20.0]
[1728777786383,72.0,146.76,146.75,10.02518573]
[1728777786562,72.0,146.76,146.75,30.02518573]
[1728777789091,2.0,146.76,146.75,30.02518573]
[1728777792095,72.0,146.76,146.65,20.0]
[1728777792394,72.0,146.76,146.75,30.02518573]
[1728777799509,2.0,146.76,146.75,30.02518573]
[1728777807806,72.0,146.78,146.76,20.0]
[1728777808114,2.0,146.78,146.77,30.02518573]
[1728777815620,70.0,146.75,146.72,10.02518573]
[1728777816599,70.0,146.75,146.74,10.02518573]
[1728777816821,70.0,146.75,146.74,30.02518573]
[1728777831038,2.0,146.76,146.75,20.0]
[1728777831239,72.0,146.76,146.75,20.0]
[1728777831430,2.0,146.76,146.75,20.0]
[1728777831829,72.0,146.76,146.75,20.0]
[1728777838446,2.0,146.76,146.75,20.0]
[1728777843030,2.0,146.78,146.75,20.0]
[1728777843231,2.0,146.78,146.77,20.0]
[1728777844044,72.0,146.8,146.77,20.0]
[1728777844238,72.0,146.8,146.78,10.02518573]
[1728777844819,2.0,146.8,146.78,10.02518573]
[1728777861873,72.0,146.8,146.77,30.02518573]
[1728777862034,72.0,146.8,146.78,20.0]
[1728777864881,72.0,146.8,146.79,10.02518573]
[1728777866388,22.4102,146.81,146.79,30.02518573]
[1728777866680,2.0,146.82,146.79,30.02518573]
[1728777866681,2.0,146.82,146.8,20.0]
[1728777867671,2.0,146.82,146.79,10.02518573]
[1728777868283,2.0,146.82,146.8,20.0]
[1728777876186,2.0,146.82,146.78,10.02518573]
[1728777876489,2.0,146.82,146.79,20.0]
[1728777877366,2.0,146.82,146.78,43.776884]
[1728777892704,2.0,146.82,146.79,10.02518573]
[1728777893009,2.0,146.82,146.8,20.0]
[1728777901315,23.7507,146.84,146.82,20.0]
[1728777902719,2.0,146.84,146.82,20.0]
[1728777902926,2.0,146.84,146.83,10.02518573]
[1728777903217,3.5470382,146.85,146.83,10.02518573]
[1728777904037,2.0,146.86,146.83,10.02518573]
[1728777905022,2.0,146.86,146.85,10.02518573]
[1728777905195,3.5470382,146.87,146.86,20.0]
[1728777905397,5.5470382,146.91,146.86,20.0]
[1728777905625,5.5470382,146.91,146.72,2.0]
[1728777905626,70.0,146.9,146.88,20.0]
[1728777905830,73.5470382,146.9,146.88,20.0]
[1728777906398,70.0,146.9,146.88,20.0]
[1728777907218,5.5470382,146.91,146.88,20.0]
[1728777908224,2.0,146.88,146.85,10.02518573]
[1728777908401,2.0,146.88,146.86,20.0]
[1728777908729,2.0,146.88,146.87,10.02518573]
[1728777908914,2.0,146.88,146.87,30.02518573]
[1728777913927,2.0,146.9,146.87,53.80206973]
[1728777914136,2.0,146.9,146.89,10.02518573]
[1728777914337,2.0,146.9,146.89,2.12651488]
[1728777920978,2.0,146.9,146.88,30.02518573]
[1728777939463,2.0,146.9,146.88,20.0]
[1728777939667,2.0,146.9,146.89,10.02518573]
[1728777943976,72.0,146.9,146.87,10.02518573]
[1728777944181,72.0,146.9,146.88,20.0]
[1728777946371,72.0,146.9,146.8,20.0]
[1728777946568,72.0,146.9,146.88,20.0]
[1728777948473,72.0,146.9,146.87,10.02518573]
[1728777948655,72.0,146.9,146.8,6.91353877]
[1728777948656,72.0,146.88,146.81,20.0]
[1728777948858,2.0,146.86,146.84,10.02518573]
[1728777950178,72.0,146.86,146.84,10.02518573]
[1728777951781,72.0,146.86,146.85,10.02518573]
[1728777961187,72.0,146.86,146.84,10.02518573]
[1728777964191,2.0,146.84,146.79,20.0]
[1728777964481,2.0,146.84,146.83,30.02518573]
[1728777970097,2.0,146.84,146.83,10.02518573]
[1728777970302,2.0,146.84,146.83,30.02518573]
[1728777982808,2.0,146.84,146.78,20.0]
[1728777983009,2.0,146.84,146.83,30.02518573]
[1728777999625,2.0,146.84,146.79,23.776884]
[1728777999802,2.0,146.84,146.83,30.02518573]
[1728778033834,2.0,146.82,146.76,6.827]
[1728778034052,2.0,146.82,146.8,20.0]
[1728778038250,2.0,146.82,146.81,30.02518573]
[1728778045946,2.0,146.82,146.81,10.02518573]
[1728778052680,2.0,146.82,146.76,43.776884]
[1728778052885,2.0,146.82,146.81,10.02518573]
[1728778057972,2.0,146.84,146.82,20.0]
[1728778058284,2.0,146.84,146.83,10.02518573]
[1728778062490,2.0,146.84,146.83,30.02518573]
[1728778074495,2.0,146.84,146.83,20.0]
[1728778079800,2.0,146.82,146.8,10.02518573]
[1728778079980,2.0,146.82,146.81,20.0]
[1728778097526,2.0,146.82,146.79,20.0]
[1728778098027,2.0,146.82,146.78,23.776884]
[1728778098028,2.0,146.82,146.81,30.02518573]
[1728778101319,2.0,146.8,146.74,20.0]
[1728778101824,2.0,146.77,146.72,6.91353877]
[1728778102033,2.0,146.77,146.76,10.02518573]
[1728778102604,2.0,146.77,146.68,6.91353877]
[1728778102802,2.0,146.77,146.76,10.02518573]
[1728778103424,2.0,146.77,146.76,30.02518573]
[1728778105104,2.0,146.77,146.76,20.0]
[1728778105426,2.0,146.75,146.68,6.91353877]
[1728778105631,2.0,146.75,146.74,10.02518573]
[1728778106025,72.0,146.75,146.67,3.95371361]
[1728778106327,72.0,146.75,146.63,89.57272668]
[1728778106626,72.0,146.75,146.74,10.02518573]
[1728778106829,72.0,146.75,146.74,20.0]
[1728778107015,72.0,146.75,146.74,30.02518573]
[1728778107215,72.0,146.75,146.74,20.0]
[1728778107444,2.0,146.71,146.64,6.22287967]
[1728778107732,72.0,146.71,146.61,4.06857498]
[1728778107930,72.0,146.71,146.6,3.24]
[1728778108102,72.0,146.71,146.59,14.51986567]
[1728778108103,2.0,146.67,146.59,6.22287967]
[1728778108303,2.0,146.67,146.66,10.02518573]
[1728778109315,2.0,146.67,146.66,30.02518573]
[1728778111026,70.0,146.7,146.67,20.0]
[1728778111202,70.0,146.7,146.69,10.02518573]
[1728778111722,70.0,146.72,146.7,20.0]
[1728778112041,70.0,146.72,146.71,10.02518573]
[1728778114033,22.4882,146.73,146.69,30.02518573]
[1728778114034,70.0,146.7,146.69,30.02518573]
[1728778124945,70.0,146.72,146.69,30.02518573]
[1728778125122,70.0,146.72,146.71,10.02518573]
[1728778125445,22.4882,146.73,146.71,10.02518573]
[1728778125624,70.0,146.74,146.72,20.0]
[1728778125828,70.0,146.74,146.73,2.11894769]
[1728778134838,70.0,146.76,146.73,2.11894769]
[1728778135048,70.0,146.76,146.75,10.02518573]
[1728778142349,70.0,146.8,146.76,20.0]
[1728778142543,70.0,146.78,146.77,30.02518573]
[1728778143146,70.0,146.8,146.77,30.02518573]
[1728778144265,70.0,146.8,146.79,10.02518573]
[1728778144441,22.0825,146.81,146.79,10.02518573]
[1728778144761,70.0,146.82,146.8,20.0]
[1728778144933,70.0,146.82,146.81,10.02518573]
[1728778156371,70.0,146.82,146.7,4.07553888]
[1728778156667,70.0,146.82,146.8,10.02518573]
[1728778161778,70.0,146.8,146.72,20.0]
[1728778161963,70.0,146.8,146.79,30.02518573]
[1728778162169,70.0,146.8,146.79,20.0]
[1728778162461,70.0,146.8,146.79,30.02518573]
[1728778162858,70.0,146.78,146.7,6.22287967]
[1728778163063,70.0,146.78,146.77,10.02518573]
[1728778164080,70.0,146.75,146.66,6.22287967]
[1728778164282,70.0,146.75,146.74,10.02518573]
[1728778168881,22.4026,146.8,146.74,10.02518573]
[1728778168882,70.0,146.78,146.74,10.02518573]
[1728778169082,92.4026,146.8,146.78,20.0]
[1728778169264,92.4026,146.8,146.79,10.02518573]
[1728778175066,70.0,146.78,146.75,20.0]
[1728778175467,70.0,146.78,146.77,30.02518573]
[1728778176168,70.0,146.78,146.77,10.02518573]
[1728778176369,70.0,146.76,146.72,20.0]
[1728778176673,70.0,146.76,146.71,6.22287967]
[1728778176674,70.0,146.76,146.75,30.02518573]
[1728778177559,70.0,146.76,146.75,10.02518573]
[1728778178785,70.0,146.76,146.75,30.02518573]
[1728778192491,70.0,146.76,146.75,20.0]
[1728778192797,70.0,146.74,146.69,20.0]
[1728778192973,70.0,146.74,146.71,20.0]
[1728778198776,70.0,146.74,146.73,30.02518573]
[1728778214302,70.0,146.74,146.71,20.0]
[1728778214613,70.0,146.74,146.7,23.776884]
[1728778214614,70.0,146.74,146.73,30.02518573]
[1728778233738,70.0,146.74,146.71,20.0]
[1728778234032,70.0,146.74,146.73,30.02518573]
[1728778236802,70.0,146.74,146.71,20.0]
[1728778237012,70.0,146.74,146.73,30.02518573]
[1728778241448,22.4026,146.8,146.74,20.0]
[1728778241742,22.4026,146.8,146.78,10.02518573]
[1728778244043,70.0,146.79,146.78,10.02518573]
[1728778256457,70.0,146.76,146.71,20.0]
[1728778256627,70.0,146.76,146.75,30.02518573]
[1728778259356,70.0,146.76,146.75,10.02518573]
[1728778260446,70.0,146.74,146.68,20.0]
[1728778260645,70.0,146.74,146.67,6.22287967]
[1728778260646,70.0,146.74,146.73,30.02518573]
[1728778267575,70.0,146.76,146.73,30.02518573]
[1728778267876,70.0,146.76,146.75,10.02518573]
[1728778275968,70.0,146.78,146.75,10.02518573]
[1728778276293,70.0,146.78,146.77,10.02518573]
[1728778278391,22.4026,146.8,146.77,10.02518573]
[1728778278392,70.0,146.8,146.77,10.02518573]
[1728778278589,70.0,146.8,146.79,10.02518573]
[1728778279870,70.0,146.82,146.79,10.02518573]
[1728778280079,70.0,146.82,146.72,1.36273002]
[1728778280080,70.0,146.82,146.81,10.02518573]
[1728778292196,70.0,146.82,146.79,10.02518573]
[1728778300015,70.0,146.82,146.8,10.02518573]
[1728778308127,70.0,146.82,146.73,20.0]
[1728778308302,70.0,146.8,146.78,10.02518573]
[1728778308496,70.0,146.8,146.75,20.0]
[1728778308694,70.0,146.8,146.77,10.02518573]
[1728778310013,70.0,146.78,146.72,20.0]
[1728778310198,70.0,146.78,146.76,10.02518573]
[1728778315544,70.0,146.8,146.76,10.02518573]
[1728778315721,70.0,146.8,146.79,10.02518573]
[1728778321843,70.0,146.8,146.77,10.02518573]
[1728778323050,70.0,146.8,146.79,10.02518573]
[1728778323941,70.0,146.8,146.74,20.0]
[1728778324252,70.0,146.8,146.78,10.02518573]
[1728778326129,70.0,146.78,146.72,20.0]
[1728778326451,70.0,146.78,146.77,10.02518573]
[1728778326651,70.0,146.76,146.71,6.22287967]
[1728778326860,70.0,146.76,146.75,10.02518573]
[1728778329762,70.0,146.74,146.7,20.0]
[1728778330059,70.0,146.74,146.73,30.02518573]
[1728778331136,70.0,146.76,146.73,30.02518573]
[1728778331368,70.0,146.76,146.75,10.02518573]
[1728778332136,70.0,146.78,146.75,10.02518573]
[1728778332357,70.0,146.78,146.77,10.02518573]
[1728778337756,91.8723,146.8,146.77,10.02518573]
[1728778337957,91.8723,146.8,146.79,10.02518573]
[1728778340442,70.0,146.8,146.79,10.02518573]
[1728778341247,70.0,146.82,146.79,10.02518573]
[1728778341447,70.0,146.82,146.81,10.02518573]
[1728778343276,70.0,146.82,146.74,23.776884]
[1728778343580,70.0,146.82,146.73,20.0]
[1728778343581,70.0,146.82,146.81,10.02518573]
[1728778350679,21.5287,146.84,146.81,10.02518573]
[1728778350680,70.0,146.86,146.81,10.02518573]
[1728778350885,70.0,146.88,146.85,10.02518573]
[1728778351058,70.0,146.88,146.87,10.02518573]
[1728778361396,70.0,146.88,146.85,10.02518573]
[1728778362267,70.0,146.93,146.88,20.0]
[1728778362587,70.0,146.93,146.92,10.02518573]
[1728778363377,70.0,146.95,146.92,10.02518573]
[1728778363577,70.0,146.95,146.94,10.02518573]
[1728778373587,0.1,146.99,146.95,20.0]
[1728778373901,0.1,146.99,146.97,10.02518573]
[1728778383299,0.1,146.99,146.97,2.1335309]
[1728778387996,0.1,146.99,146.98,10.02518573]
[1728778388482,70.1,146.99,146.98,10.02518573]
[1728778390400,70.0,146.97,146.91,6.96109365]
[1728778390602,70.0,146.95,146.82,82.6139761]
[1728778390802,70.0,146.95,146.93,10.02518573]
[1728778391420,70.0,146.95,146.83,16.59504867]
[1728778391616,70.0,146.95,146.92,10.02518573]
[1728778391817,22.6596,146.96,146.83,16.59504867]
[1728778391818,70.0,146.93,146.91,10.02518573]
[1728778392933,70.0,146.95,146.92,10.02518573]
[1728778393226,70.0,146.95,146.94,10.02518573]
[1728778395537,70.0,146.95,146.84,1.3614212]
[1728778395538,70.0,146.95,146.85,23.776884]
[1728778395835,70.0,146.95,146.94,10.02518573]
[1728778398916,70.0,146.95,146.87,23.776884]
[1728778399116,70.0,146.95,146.93,10.02518573]
[1728778406038,70.0,146.93,146.88,20.0]
[1728778406241,70.0,146.93,146.91,10.02518573]
[1728778407623,70.0,146.93,146.92,10.02518573]
[1728778410812,70.0,146.93,146.88,20.0]
[1728778411036,70.0,146.93,146.86,20.0]
[1728778411228,70.0,146.93,146.91,10.02518573]
[1728778412329,22.6596,146.96,146.89,10.02518573]
[1728778412330,70.0,146.91,146.89,10.02518573]
[1728778413236,70.0,146.91,146.84,23.776884]
[1728778413443,70.0,146.91,146.89,10.02518573]
[1728778420757,70.0,146.91,146.9,10.02518573]
[1728778421054,70.0,146.93,146.9,10.02518573]
[1728778421247,70.0,146.93,146.92,10.02518573]
[1728778422755,70.0,146.91,146.87,20.0]
[1728778423137,70.0,146.91,146.9,10.02518573]
[1728778429463,70.0,146.93,146.9,10.02518573]
[1728778431341,70.0,146.93,146.92,10.02518573]
[1728778432066,22.6596,146.96,146.92,10.02518573]
[1728778432354,70.0,146.97,146.95,10.02518573]
[1728778432861,70.1,146.99,146.95,10.02518573]
[1728778433053,70.1,146.99,146.98,10.02518573]
[1728778436273,0.1,146.99,146.98,10.02518573]
[1728778436845,70.1,146.99,146.92,20.0]
[1728778437042,70.1,146.99,146.98,10.02518573]
[1728778437751,0.1,146.99,146.98,10.02518573]
[1728778441452,0.1,146.99,146.9,43.776884]
[1728778441453,70.1,146.99,146.9,43.776884]
[1728778441668,70.1,146.99,146.97,10.02518573]
[1728778443248,70.1,146.99,146.92,20.0]
[1728778443471,70.0,146.97,146.95,10.02518573]
[1728778444549,70.0,146.97,146.92,20.0]
[1728778444777,70.0,146.97,146.95,10.02518573]
[1728778447676,70.0,146.95,146.91,6.96109365]
[1728778447878,70.0,146.95,146.93,10.02518573]
[1728778449585,70.0,146.95,146.87,6.96109365]
[1728778449756,70.0,146.93,146.88,43.776884]
[1728778449956,70.0,146.93,146.92,10.02518573]
[1728778451558,70.0,146.96,146.92,10.02518573]
[1728778451765,70.0,146.96,146.95,10.02518573]
[1728778455956,70.0,146.98,146.95,10.02518573]
[1728778456286,70.0,146.98,146.97,10.02518573]
[1728778460366,70.0,146.98,146.93,20.0]
[1728778460694,70.0,146.98,146.96,10.02518573]
[1728778467294,0.1,146.99,146.96,10.02518573]
[1728778467599,0.8609507,147.0,146.99,20.0]
[1728778478093,0.8609507,147.0,146.93,20.0]
[1728778478295,0.8609507,147.0,146.99,30.02518573]
[1728778488511,0.8609507,147.0,146.97,20.0]
[1728778488714,0.8609507,147.0,146.96,23.776884]
[1728778488715,0.8609507,147.0,146.99,30.02518573]
[1728778490327,0.8609507,147.0,146.99,10.02518573]
[1728778491014,0.8609507,147.0,146.95,43.776884]
[1728778491322,0.8609507,147.0,146.98,10.02518573]
[1728778495804,0.8609507,147.0,146.99,10.02518573]
[1728778501206,0.8609507,147.0,146.95,43.776884]
[1728778501546,0.8609507,147.0,146.99,10.02518573]
[1728778510929,21.5241,147.02,146.99,10.02518573]
[1728778510930,70.0,147.05,147.0,20.0]
[1728778511131,70.0,147.05,147.04,10.02518573]
[1728778518950,70.1,147.09,147.05,20.0]
[1728778519250,0.1,147.09,147.08,10.02518573]
[1728778525456,0.1,147.09,147.08,30.02518573]
[1728778534163,0.8609507,147.14,147.09,20.0]
[1728778534362,0.8609507,147.14,147.13,10.02518573]
[1728778541951,70.0,147.13,147.11,10.02518573]
[1728778548753,70.0,147.11,147.07,20.0]
[1728778548957,70.0,147.11,147.09,10.02518573]
[1728778549353,0.8609507,147.14,147.04,6.96109365]
[1728778549354,70.0,147.08,147.04,6.96109365]
[1728778549555,70.0,147.08,147.07,10.02518573]
[1728778551252,92.8733,147.1,147.07,10.02518573]
[1728778551593,92.8733,147.1,147.09,10.02518573]
[1728778560675,70.0,147.07,147.03,20.0]
[1728778560982,70.0,147.07,147.06,10.02518573]
[1728778565559,70.0,147.09,147.06,10.02518573]
[1728778565763,70.0,147.07,147.02,20.0]
[1728778565956,70.0,147.07,147.03,1.36007086]
[1728778567184,70.0,147.07,147.06,10.02518573]
[1728778568264,70.0,147.07,147.02,20.0]
[1728778568465,70.0,147.07,147.06,10.02518573]
[1728778571067,70.0,147.09,147.06,10.02518573]
[1728778571274,70.0,147.09,147.08,10.02518573]
[1728778593322,70.0,147.07,147.06,10.02518573]
[1728778599026,70.0,147.05,147.01,20.0]
[1728778599324,70.0,147.05,147.04,10.02518573]
[1728778600029,70.0,147.03,146.92,7.09675413]
[1728778600219,70.0,147.03,147.01,10.02518573]
[1728778600420,70.0,147.03,147.02,10.02518573]
[1728778608411,91.7634,147.05,147.02,10.02518573]
[1728778608622,70.0,147.05,147.04,10.02518573]
[1728778610239,70.0,147.07,147.04,10.02518573]
[1728778610531,70.0,147.07,147.06,10.02518573]
[1728778622962,70.0,147.05,147.04,10.02518573]
[1728778629440,70.0,147.07,147.04,10.02518573]
[1728778629654,70.0,147.07,147.06,10.02518573]
[1728778630186,70.0,147.07,147.0,1.36029646]
[1728778630462,70.0,147.07,146.98,6.96109365]
[1728778630463,70.0,147.04,147.02,10.02518573]
[1728778632361,70.0,147.04,146.99,20.0]
[1728778632654,70.0,147.04,147.02,10.02518573]
[1728778642173,70.0,147.04,147.03,10.02518573]
[1728778671188,70.0,147.03,146.98,6.96109365]
[1728778671371,70.0,147.01,147.0,10.02518573]
[1728778673887,70.0,147.03,147.0,10.02518573]
[1728778674087,70.0,147.03,147.02,10.02518573]
[1728778676972,70.0,147.0,146.95,20.0]
[1728778677189,70.0,147.0,146.99,10.02518573]
[1728778677972,70.0,147.0,146.91,6.96109365]
[1728778678299,70.0,147.0,146.99,10.02518573]
[1728778681100,70.0,147.02,146.99,10.02518573]
[1728778681299,70.0,147.02,147.01,10.02518573]
[1728778686496,70.0,147.04,147.01,10.02518573]
[1728778686733,70.0,147.04,147.03,10.02518573]
[1728778690995,70.0,147.02,146.94,20.0]
[1728778691318,70.0,147.02,147.01,10.02518573]
[1728778697523,70.0,147.04,147.01,10.02518573]
[1728778697821,70.0,147.04,147.03,10.02518573]
[1728778716822,70.0,147.04,146.93,20.0]
[1728778717038,70.0,147.04,147.03,10.02518573]
[1728778720842,70.0,147.06,147.03,10.02518573]
[1728778721013,70.0,147.06,147.05,10.02518573]
[1728778728139,70.0,147.06,146.93,20.0]
[1728778728140,70.0,147.06,146.94,23.776884]
[1728778728338,70.0,147.06,147.05,10.02518573]
[1728778764955,70.0,147.06,146.94,3.92945866]
[1728778765273,70.0,147.06,147.05,10.02518573]
[1728778790081,70.0,147.04,146.97,23.776884]
[1728778790392,70.0,147.04,147.03,10.02518573]
[1728778794064,70.0,147.04,146.98,20.0]
[1728778794272,70.0,147.02,146.98,20.0]
[1728778794488,70.0,147.02,147.01,10.02518573]
[1728778807583,70.0,147.0,146.96,20.0]
[1728778807783,70.0,147.0,146.99,10.02518573]
[1728778808995,6.8,147.06,146.87,3.24]
[1728778808996,70.0,146.98,146.87,3.24]
[1728778809202,70.0,146.98,146.97,10.02518573]
[1728778810785,70.0,146.96,146.88,7.4263774]
[1728778810988,70.0,146.96,146.95,10.02518573]
[1728778814186,70.0,146.96,146.88,7.4263774]
[1728778814389,70.0,146.96,146.95,10.02518573]
[1728778817704,91.3948,146.96,146.95,10.02518573]
[1728778821300,70.0,146.96,146.95,10.02518573]
[1728778825291,70.0,146.96,146.89,23.776884]
[1728778825292,70.0,146.92,146.89,20.0]
[1728778825494,70.0,146.92,146.91,10.02518573]
[1728778834530,70.0,146.94,146.91,10.02518573]
[1728778834847,70.0,146.94,146.93,10.02518573]
[1728778842546,70.0,146.94,146.85,7.4263774]
[1728778842547,70.0,146.94,146.86,43.776884]
[1728778842846,70.0,146.94,146.93,10.02518573]
[1728778843827,6.6308,146.91,146.81,4.05048272]
[1728778844059,10.02518573,146.87,146.78,3.24]
[1728778844225,70.0,146.86,146.78,3.24]
[1728778844557,70.0,146.86,146.75,7.08047527]
[1728778844773,70.0,146.86,146.84,10.02518573]
[1728778845262,70.0,146.84,146.82,10.02518573]
[1728778845826,70.0,146.82,146.81,10.02518573]
[1728778847747,70.0,146.84,146.81,10.02518573]
[1728778847929,70.0,146.84,146.83,10.02518573]
[1728778848163,70.0,146.86,146.83,10.02518573]
[1728778848369,70.0,146.86,146.85,10.02518573]
[1728778849062,70.0,146.88,146.85,10.02518573]
[1728778849267,70.0,146.88,146.87,10.02518573]
[1728778849435,70.0,146.88,146.82,23.776884]
[1728778849642,70.0,146.88,146.87,10.02518573]